[Event "Late-Titled-Tuesday-Blitz-February-13-2024"]
[Site "Chess.com"]
[Date "2024.02.13"]
[Round "4"]
[White "dawid498"]
[Black "ChadBiryani"]
[Result "1-0"]
[WhiteElo "2695"]
[BlackElo "2464"]
[TimeControl "180+1"]
[EndTime "14:38:47 PST"]
[Termination "dawid498 won on time"]

1. e4 {[%clk 0:03:00.9]} 1... c5 {[%clk 0:02:58.9]} 2. Nc3 {[%clk 0:03:00.2]}
2... Nc6 {[%clk 0:02:58.1]} 3. Bb5 {[%clk 0:03:00.2]} 3... Nd4 {[%clk
0:02:57.8]} 4. Bc4 {[%clk 0:03:00.5]} 4... e6 {[%clk 0:02:56.1]} 5. Nge2 {[%clk
0:03:00.9]} 5... g6 {[%clk 0:02:51.3]} 6. O-O {[%clk 0:02:43.3]} 6... a6 {[%clk
0:02:44]} 7. a4 {[%clk 0:02:35.8]} 7... Bg7 {[%clk 0:02:43.4]} 8. Nxd4 {[%clk
0:02:32]} 8... cxd4 {[%clk 0:02:44.3]} 9. Ne2 {[%clk 0:02:32.3]} 9... d5 {[%clk
0:02:41.6]} 10. exd5 {[%clk 0:02:30.6]} 10... exd5 {[%clk 0:02:42.5]} 11. Bd3
{[%clk 0:02:16]} 11... Ne7 {[%clk 0:02:42.5]} 12. c3 {[%clk 0:02:12.5]} 12...
dxc3 {[%clk 0:02:34.9]} 13. bxc3 {[%clk 0:01:54.1]} 13... O-O {[%clk 0:02:32.7]}
14. Ba3 {[%clk 0:01:51.5]} 14... Re8 {[%clk 0:02:32]} 15. Re1 {[%clk 0:01:50.9]}
15... Nc6 {[%clk 0:02:17.2]} 16. Ng3 {[%clk 0:01:25.2]} 16... d4 {[%clk
0:02:08.1]} 17. Rxe8+ {[%clk 0:00:56]} 17... Qxe8 {[%clk 0:02:09]} 18. Qb3
{[%clk 0:00:56.3]} 18... dxc3 {[%clk 0:01:51.6]} 19. dxc3 {[%clk 0:00:57.2]}
19... Qe5 {[%clk 0:01:02.6]} 20. Bb2 {[%clk 0:00:42.1]} 20... Na5 {[%clk
0:00:58.9]} 21. Qc2 {[%clk 0:00:30.1]} 21... Be6 {[%clk 0:00:56.4]} 22. Rb1
{[%clk 0:00:26.7]} 22... Nc4 {[%clk 0:00:51.9]} 23. Bxc4 {[%clk 0:00:25.2]}
23... Bxc4 {[%clk 0:00:52.8]} 24. Qd2 {[%clk 0:00:17.3]} 24... Re8 {[%clk
0:00:47.1]} 25. h3 {[%clk 0:00:16.6]} 25... b5 {[%clk 0:00:47.1]} 26. axb5
{[%clk 0:00:16.6]} 26... axb5 {[%clk 0:00:48]} 27. Nf1 {[%clk 0:00:12.9]} 27...
h5 {[%clk 0:00:19.1]} 28. Ne3 {[%clk 0:00:13.2]} 28... Bh6 {[%clk 0:00:19.3]}
29. Re1 {[%clk 0:00:12.9]} 29... Qe7 {[%clk 0:00:10.9]} 30. Qd4 {[%clk
0:00:05.9]} 30... Bg7 {[%clk 0:00:11.2]} 31. Qd1 {[%clk 0:00:04.8]} 31... Rd8
{[%clk 0:00:10.2]} 32. Qc1 {[%clk 0:00:04.5]} 32... Bb3 {[%clk 0:00:08.7]} 33.
Nf5 {[%clk 0:00:03.2]} 33... Qf6 {[%clk 0:00:06.5]} 34. Nxg7 {[%clk 0:00:03.5]}
34... Qxg7 {[%clk 0:00:07.4]} 35. c4 {[%clk 0:00:04.1]} 35... Qf8 {[%clk
0:00:06.3]} 36. cxb5 {[%clk 0:00:04.7]} 36... Qb4 {[%clk 0:00:06.2]} 37. Qe3
{[%clk 0:00:03.8]} 37... Qxe1+ {[%clk 0:00:05.7]} 38. Qxe1 {[%clk 0:00:03.9]}
38... Rd1 {[%clk 0:00:06.5]} 39. Qxd1 {[%clk 0:00:04.4]} 39... Bxd1 {[%clk
0:00:07.4]} 40. b6 {[%clk 0:00:04.9]} 40... Bf3 {[%clk 0:00:05.3]} 41. gxf3
{[%clk 0:00:05.8]} 1-0

[Event "Late-Titled-Tuesday-Blitz-February-13-2024"]
[Site "Chess.com"]
[Date "2024.02.13"]
[Round "4"]
[White "FabianoCaruana"]
[Black "TigrVShlyape"]
[Result "1-0"]
[WhiteElo "3065"]
[BlackElo "2864"]
[TimeControl "180+1"]
[EndTime "14:38:49 PST"]
[Termination "FabianoCaruana won by resignation"]

1. e4 {[%clk 0:03:00.9]} 1... e5 {[%clk 0:02:55.3]} 2. Nf3 {[%clk 0:03:01]} 2...
Nc6 {[%clk 0:02:55.6]} 3. Bb5 {[%clk 0:03:01.4]} 3... g6 {[%clk 0:02:53.2]} 4.
O-O {[%clk 0:02:57.8]} 4... Bg7 {[%clk 0:02:53.4]} 5. c3 {[%clk 0:02:57.9]} 5...
d6 {[%clk 0:02:53.4]} 6. d4 {[%clk 0:02:57.5]} 6... Bd7 {[%clk 0:02:53.6]} 7. h3
{[%clk 0:02:57.3]} 7... Nf6 {[%clk 0:02:50.5]} 8. Re1 {[%clk 0:02:57]} 8... O-O
{[%clk 0:02:50.5]} 9. Bd3 {[%clk 0:02:50.7]} 9... Qe8 {[%clk 0:02:42]} 10. Nbd2
{[%clk 0:02:49.1]} 10... Nh5 {[%clk 0:02:41.8]} 11. Nb3 {[%clk 0:02:43.6]} 11...
b6 {[%clk 0:02:37.3]} 12. Be3 {[%clk 0:02:40]} 12... Kh8 {[%clk 0:02:36.3]} 13.
Nbd2 {[%clk 0:02:36.4]} 13... f5 {[%clk 0:02:35.4]} 14. exf5 {[%clk 0:02:32]}
14... gxf5 {[%clk 0:02:35.2]} 15. dxe5 {[%clk 0:02:20.4]} 15... dxe5 {[%clk
0:02:35.1]} 16. Bb5 {[%clk 0:01:47.2]} 16... e4 {[%clk 0:02:26.3]} 17. Bxc6
{[%clk 0:01:40]} 17... Bxc6 {[%clk 0:02:25.9]} 18. Nd4 {[%clk 0:01:36.9]} 18...
Bb7 {[%clk 0:02:19.1]} 19. f4 {[%clk 0:01:36.1]} 19... c5 {[%clk 0:02:14.2]} 20.
Nc2 {[%clk 0:01:32.5]} 20... Rd8 {[%clk 0:02:13.3]} 21. Qe2 {[%clk 0:01:32.4]}
21... Qg6 {[%clk 0:02:08.4]} 22. Qf2 {[%clk 0:01:28.9]} 22... Rg8 {[%clk
0:02:07.5]} 23. Nc4 {[%clk 0:01:22.8]} 23... Ba6 {[%clk 0:02:02.5]} 24. N2a3
{[%clk 0:01:03.6]} 24... Bf6 {[%clk 0:02:02.1]} 25. Red1 {[%clk 0:00:55.1]}
25... Rd3 {[%clk 0:01:53.3]} 26. Rxd3 {[%clk 0:00:32.3]} 26... exd3 {[%clk
0:01:52.9]} 27. Qf3 {[%clk 0:00:24.7]} 27... Ng3 {[%clk 0:01:32.3]} 28. Rd1
{[%clk 0:00:23.3]} 28... Qg7 {[%clk 0:01:16.3]} 29. Nd6 {[%clk 0:00:22.3]} 29...
Be7 {[%clk 0:01:15.3]} 30. Nac4 {[%clk 0:00:20.5]} 30... b5 {[%clk 0:01:10.4]}
31. Bxc5 {[%clk 0:00:11.9]} 31... bxc4 {[%clk 0:01:08.9]} 32. Bd4 {[%clk
0:00:07.1]} 32... Bf6 {[%clk 0:01:06.9]} 33. Bf2 {[%clk 0:00:07.6]} 33... Ne2+
{[%clk 0:01:03.3]} 34. Kh1 {[%clk 0:00:08.1]} 34... Qd7 {[%clk 0:01:02.1]} 35.
Qd5 {[%clk 0:00:06.6]} 35... Nxf4 {[%clk 0:01:01.7]} 36. Nf7+ {[%clk 0:00:06.6]}
36... Qxf7 {[%clk 0:00:59.5]} 37. Qxf7 {[%clk 0:00:07.5]} 37... Bg7 {[%clk
0:00:45.9]} 38. Qxf5 {[%clk 0:00:07.7]} 38... Rf8 {[%clk 0:00:42.9]} 39. Qd7
{[%clk 0:00:07.6]} 39... Bc8 {[%clk 0:00:41.9]} 40. Qxa7 {[%clk 0:00:07.6]}
40... Bf5 {[%clk 0:00:39.3]} 41. Bd4 {[%clk 0:00:07.4]} 41... Ne6 {[%clk
0:00:35.6]} 42. Bxg7+ {[%clk 0:00:07.4]} 42... Nxg7 {[%clk 0:00:35.9]} 43. Qd4
{[%clk 0:00:08.1]} 43... Be6 {[%clk 0:00:33.9]} 44. b3 {[%clk 0:00:08]} 1-0

[Event "Late-Titled-Tuesday-Blitz-February-13-2024"]
[Site "Chess.com"]
[Date "2024.02.13"]
[Round "4"]
[White "pinguino120"]
[Black "EvilMorty23"]
[Result "1/2-1/2"]
[WhiteElo "2337"]
[BlackElo "2510"]
[TimeControl "180+1"]
[EndTime "14:38:49 PST"]
[Termination "Game drawn - insufficient material"]

1. d4 {[%clk 0:02:57.2]} 1... Nf6 {[%clk 0:02:57.8]} 2. c4 {[%clk 0:02:51.7]}
2... e6 {[%clk 0:02:47]} 3. Nf3 {[%clk 0:02:51.5]} 3... d5 {[%clk 0:02:42.5]} 4.
g3 {[%clk 0:02:49.1]} 4... Bb4+ {[%clk 0:01:14.6]} 5. Nbd2 {[%clk 0:02:43]} 5...
Be7 {[%clk 0:01:15.5]} 6. Bg2 {[%clk 0:02:43]} 6... O-O {[%clk 0:01:08.8]} 7.
O-O {[%clk 0:02:42]} 7... c6 {[%clk 0:01:05]} 8. b3 {[%clk 0:02:39.7]} 8... b6
{[%clk 0:01:02.8]} 9. Bb2 {[%clk 0:02:39.8]} 9... Nbd7 {[%clk 0:01:02.6]} 10.
Qc2 {[%clk 0:02:40]} 10... Bb7 {[%clk 0:00:55.1]} 11. e4 {[%clk 0:02:39.8]}
11... dxe4 {[%clk 0:00:54.8]} 12. Nxe4 {[%clk 0:02:39.8]} 12... c5 {[%clk
0:00:54.9]} 13. Nxf6+ {[%clk 0:02:36.8]} 13... Bxf6 {[%clk 0:00:52.3]} 14. Rad1
{[%clk 0:02:33.4]} 14... cxd4 {[%clk 0:00:41.9]} 15. Nxd4 {[%clk 0:02:21]} 15...
Bxg2 {[%clk 0:00:40.3]} 16. Kxg2 {[%clk 0:02:21.9]} 16... Qc7 {[%clk 0:00:31.2]}
17. Kg1 {[%clk 0:02:03.7]} 17... a6 {[%clk 0:00:27.3]} 18. Nf3 {[%clk
0:01:50.2]} 18... Rfd8 {[%clk 0:00:28.2]} 19. Rd2 {[%clk 0:01:41.6]} 19... Bxb2
{[%clk 0:00:27.7]} 20. Qxb2 {[%clk 0:01:42.5]} 20... Nc5 {[%clk 0:00:27.8]} 21.
Rfd1 {[%clk 0:01:38.6]} 21... Rxd2 {[%clk 0:00:28]} 22. Rxd2 {[%clk 0:01:38.7]}
22... Rd8 {[%clk 0:00:28.6]} 23. Rxd8+ {[%clk 0:01:34.6]} 23... Qxd8 {[%clk
0:00:29.5]} 24. Qd4 {[%clk 0:01:34.7]} 24... Qxd4 {[%clk 0:00:29.1]} 25. Nxd4
{[%clk 0:01:35.6]} 25... Kf8 {[%clk 0:00:28.6]} 26. Kf1 {[%clk 0:01:32.5]} 26...
Ke7 {[%clk 0:00:28.7]} 27. Ke2 {[%clk 0:01:32.7]} 27... Kd6 {[%clk 0:00:29.1]}
28. Ke3 {[%clk 0:01:31.4]} 28... g6 {[%clk 0:00:29.6]} 29. f4 {[%clk 0:01:28.9]}
29... f6 {[%clk 0:00:29.9]} 30. Ne2 {[%clk 0:01:26.4]} 30... e5 {[%clk
0:00:29.6]} 31. Nc3 {[%clk 0:01:24.2]} 31... exf4+ {[%clk 0:00:28]} 32. gxf4
{[%clk 0:01:25.1]} 32... Nd7 {[%clk 0:00:23.9]} 33. b4 {[%clk 0:01:08.5]} 33...
a5 {[%clk 0:00:22.2]} 34. a3 {[%clk 0:01:08.8]} 34... axb4 {[%clk 0:00:21.9]}
35. axb4 {[%clk 0:01:09.7]} 35... Nf8 {[%clk 0:00:18.8]} 36. Nd5 {[%clk
0:01:08.4]} 36... b5 {[%clk 0:00:18.4]} 37. Nxf6 {[%clk 0:00:57.8]} 37... bxc4
{[%clk 0:00:18.8]} 38. Kd4 {[%clk 0:00:58.2]} 38... Ne6+ {[%clk 0:00:19.2]} 39.
Kxc4 {[%clk 0:00:57.2]} 39... Nxf4 {[%clk 0:00:19.6]} 40. Nxh7 {[%clk 0:00:57]}
40... Ne6 {[%clk 0:00:16.7]} 41. b5 {[%clk 0:00:54.9]} 41... g5 {[%clk
0:00:15.2]} 42. Nf6 {[%clk 0:00:53.4]} 42... Ke5 {[%clk 0:00:13.8]} 43. Nd7+
{[%clk 0:00:53.2]} 43... Kd6 {[%clk 0:00:13.9]} 44. Nf6 {[%clk 0:00:51.7]} 44...
Ke5 {[%clk 0:00:14.2]} 45. Ng4+ {[%clk 0:00:52.3]} 45... Kf4 {[%clk 0:00:14.3]}
46. Nf2 {[%clk 0:00:52.6]} 46... Kf3 {[%clk 0:00:14.4]} 47. Nd3 {[%clk
0:00:52.7]} 47... Kg2 {[%clk 0:00:13.6]} 48. b6 {[%clk 0:00:51.9]} 48... Nd8
{[%clk 0:00:13.7]} 49. Ne5 {[%clk 0:00:50.7]} 49... Kxh2 {[%clk 0:00:13.6]} 50.
Kc5 {[%clk 0:00:51]} 50... Kg3 {[%clk 0:00:12.3]} 51. Kd6 {[%clk 0:00:51.5]}
51... Kf4 {[%clk 0:00:12.4]} 52. Kc7 {[%clk 0:00:50.6]} 52... Ne6+ {[%clk
0:00:12.5]} 53. Kd6 {[%clk 0:00:51]} 53... Nd8 {[%clk 0:00:12.6]} 54. Ng6+
{[%clk 0:00:50.9]} 54... Ke4 {[%clk 0:00:11.3]} 55. Kd7 {[%clk 0:00:47.9]} 55...
Nb7 {[%clk 0:00:09.7]} 56. Kc7 {[%clk 0:00:48.5]} 56... Na5 {[%clk 0:00:09.8]}
57. Ne7 {[%clk 0:00:47.2]} 57... g4 {[%clk 0:00:10.2]} 58. Nc6 {[%clk
0:00:47.7]} 58... Nxc6 {[%clk 0:00:10.5]} 59. Kxc6 {[%clk 0:00:48.2]} 59... g3
{[%clk 0:00:11.4]} 60. b7 {[%clk 0:00:48.8]} 60... g2 {[%clk 0:00:12.3]} 61.
b8=Q {[%clk 0:00:49.1]} 61... g1=Q {[%clk 0:00:13.2]} 62. Qe8+ {[%clk
0:00:48.6]} 62... Kd3 {[%clk 0:00:13.9]} 63. Qd7+ {[%clk 0:00:48.8]} 63... Kc4
{[%clk 0:00:14.1]} 64. Qd6 {[%clk 0:00:48.7]} 64... Qg2+ {[%clk 0:00:13.5]} 65.
Kd7 {[%clk 0:00:48.3]} 65... Qg7+ {[%clk 0:00:13.4]} 66. Qe7 {[%clk 0:00:48.7]}
66... Qd4+ {[%clk 0:00:12.7]} 67. Qd6 {[%clk 0:00:48.9]} 67... Qa7+ {[%clk
0:00:13.6]} 68. Qc7+ {[%clk 0:00:49.2]} 68... Qxc7+ {[%clk 0:00:13.7]} 69. Kxc7
{[%clk 0:00:50.1]} 1/2-1/2

[Event "Late-Titled-Tuesday-Blitz-February-13-2024"]
[Site "Chess.com"]
[Date "2024.02.13"]
[Round "4"]
[White "ckgchess"]
[Black "Oleksandr_Bortnyk"]
[Result "0-1"]
[WhiteElo "2863"]
[BlackElo "3056"]
[TimeControl "180+1"]
[EndTime "14:38:54 PST"]
[Termination "Oleksandr_Bortnyk won by resignation"]

1. e4 {[%clk 0:03:00.9]} 1... Nf6 {[%clk 0:02:57.3]} 2. e5 {[%clk 0:03:01.4]}
2... Nd5 {[%clk 0:02:57.6]} 3. d4 {[%clk 0:03:02.2]} 3... d6 {[%clk 0:02:57.7]}
4. c4 {[%clk 0:03:02.7]} 4... Nb6 {[%clk 0:02:57.8]} 5. f4 {[%clk 0:03:03.3]}
5... dxe5 {[%clk 0:02:58.2]} 6. fxe5 {[%clk 0:03:04.2]} 6... Bf5 {[%clk
0:02:58.2]} 7. Nc3 {[%clk 0:03:04.9]} 7... e6 {[%clk 0:02:58.8]} 8. Nf3 {[%clk
0:02:49.7]} 8... Bb4 {[%clk 0:02:58.1]} 9. a3 {[%clk 0:02:29.2]} 9... Bxc3+
{[%clk 0:02:54]} 10. bxc3 {[%clk 0:02:30.1]} 10... c5 {[%clk 0:02:54.4]} 11. a4
{[%clk 0:02:21.1]} 11... Nc6 {[%clk 0:02:23.8]} 12. Ba3 {[%clk 0:02:00.3]} 12...
cxd4 {[%clk 0:02:17.3]} 13. cxd4 {[%clk 0:01:56.3]} 13... Bg4 {[%clk 0:02:15.2]}
14. a5 {[%clk 0:01:17.7]} 14... Bxf3 {[%clk 0:02:10.1]} 15. Qxf3 {[%clk
0:01:09.9]} 15... Qxd4 {[%clk 0:02:08.6]} 16. Rd1 {[%clk 0:01:05.1]} 16... Qxe5+
{[%clk 0:02:08.7]} 17. Be2 {[%clk 0:01:05.8]} 17... Qxa5+ {[%clk 0:02:08]} 18.
Kf2 {[%clk 0:00:59.8]} 18... Ne5 {[%clk 0:01:34.5]} 19. Qg3 {[%clk 0:00:57.2]}
19... Nbd7 {[%clk 0:01:09.4]} 20. Bd6 {[%clk 0:00:30.8]} 20... O-O-O {[%clk
0:01:01.2]} 21. c5 {[%clk 0:00:27.2]} 21... Nxc5 {[%clk 0:00:53.8]} 22. Qxe5
{[%clk 0:00:22.8]} 22... Rxd6 {[%clk 0:00:53.6]} 23. Rc1 {[%clk 0:00:08.6]}
23... Rd5 {[%clk 0:00:51]} 24. Qxg7 {[%clk 0:00:09]} 24... Rf5+ {[%clk
0:00:46.2]} 25. Kg3 {[%clk 0:00:05.1]} 25... Qd8 {[%clk 0:00:44]} 26. Bg4 {[%clk
0:00:04.5]} 26... Rg8 {[%clk 0:00:36.5]} 27. Qxh7 {[%clk 0:00:01.1]} 27... Qd3+
{[%clk 0:00:21.7]} 28. Kh4 {[%clk 0:00:02]} 28... Qd8+ {[%clk 0:00:07.2]} 29.
Kg3 {[%clk 0:00:02.4]} 29... Rfg5 {[%clk 0:00:06.3]} 30. h3 {[%clk 0:00:02.6]}
30... Qd6+ {[%clk 0:00:06.4]} 31. Kh4 {[%clk 0:00:02.6]} 31... Qd8 {[%clk
0:00:04.7]} 32. Kg3 {[%clk 0:00:03.1]} 32... b6 {[%clk 0:00:04.1]} 33. Rhd1
{[%clk 0:00:03.6]} 33... Qc7+ {[%clk 0:00:04.2]} 34. Kf2 {[%clk 0:00:04]} 34...
f5 {[%clk 0:00:03]} 35. Qxc7+ {[%clk 0:00:04.9]} 35... Kxc7 {[%clk 0:00:03.6]}
36. Bf3 {[%clk 0:00:05.8]} 36... e5 {[%clk 0:00:03.7]} 37. h4 {[%clk 0:00:06.7]}
37... R5g7 {[%clk 0:00:03.7]} 38. Rd5 {[%clk 0:00:07.6]} 38... e4 {[%clk
0:00:03.9]} 39. Be2 {[%clk 0:00:08.3]} 39... Rxg2+ {[%clk 0:00:03.7]} 40. Ke3
{[%clk 0:00:08.6]} 40... Rh2 {[%clk 0:00:04]} 41. Rxf5 {[%clk 0:00:08.7]} 41...
Rg3+ {[%clk 0:00:04.1]} 42. Kd2 {[%clk 0:00:08.8]} 42... Rgg2 {[%clk 0:00:04.4]}
43. Re1 {[%clk 0:00:09.1]} 43... Nb3+ {[%clk 0:00:03.9]} 44. Ke3 {[%clk
0:00:09.2]} 44... Rxe2+ {[%clk 0:00:04.2]} 45. Rxe2 {[%clk 0:00:09.3]} 45...
Rxe2+ {[%clk 0:00:05.1]} 0-1

[Event "Late-Titled-Tuesday-Blitz-February-13-2024"]
[Site "Chess.com"]
[Date "2024.02.13"]
[Round "4"]
[White "Mikayel99"]
[Black "trriinu"]
[Result "1-0"]
[WhiteElo "2503"]
[BlackElo "2246"]
[TimeControl "180+1"]
[EndTime "14:38:55 PST"]
[Termination "Mikayel99 won on time"]

1. d4 {[%clk 0:02:58.5]} 1... d5 {[%clk 0:02:59.5]} 2. c4 {[%clk 0:02:58.2]}
2... e5 {[%clk 0:02:58.9]} 3. dxe5 {[%clk 0:02:57.6]} 3... d4 {[%clk 0:02:59.8]}
4. e3 {[%clk 0:02:57.2]} 4... Bb4+ {[%clk 0:02:59.5]} 5. Bd2 {[%clk 0:02:57.4]}
5... dxe3 {[%clk 0:02:59.8]} 6. fxe3 {[%clk 0:02:56.7]} 6... Qh4+ {[%clk
0:02:11.3]} 7. g3 {[%clk 0:02:54.6]} 7... Qe4 {[%clk 0:02:11.1]} 8. Qf3 {[%clk
0:02:41.7]} 8... Bxd2+ {[%clk 0:02:09.7]} 9. Nxd2 {[%clk 0:02:42.6]} 9... Qxe5
{[%clk 0:02:09.9]} 10. O-O-O {[%clk 0:02:37.9]} 10... Nf6 {[%clk 0:02:00.4]} 11.
Bh3 {[%clk 0:02:25.7]} 11... Nc6 {[%clk 0:01:55.1]} 12. Bxc8 {[%clk 0:02:19.3]}
12... Rxc8 {[%clk 0:01:56]} 13. Qf4 {[%clk 0:02:19.8]} 13... Qa5 {[%clk
0:01:46.5]} 14. Ne4 {[%clk 0:02:19.2]} 14... Nxe4 {[%clk 0:01:13.7]} 15. Qxe4+
{[%clk 0:02:20.1]} 15... Qe5 {[%clk 0:01:14.4]} 16. Qxe5+ {[%clk 0:02:14.8]}
16... Nxe5 {[%clk 0:01:15.3]} 17. b3 {[%clk 0:02:15.4]} 17... O-O {[%clk
0:01:15.4]} 18. Nh3 {[%clk 0:02:13.4]} 18... Rcd8 {[%clk 0:01:05.5]} 19. Nf4
{[%clk 0:02:06.3]} 19... Ng4 {[%clk 0:01:01.6]} 20. Nd5 {[%clk 0:01:37]} 20...
c6 {[%clk 0:00:54.3]} 21. Ne7+ {[%clk 0:01:37.1]} 21... Kh8 {[%clk 0:00:54.7]}
22. Rhe1 {[%clk 0:01:28.8]} 22... g6 {[%clk 0:00:51.7]} 23. Rxd8 {[%clk
0:01:16.4]} 23... Rxd8 {[%clk 0:00:50]} 24. Rd1 {[%clk 0:01:15.5]} 24... Rxd1+
{[%clk 0:00:43.1]} 25. Kxd1 {[%clk 0:01:16.4]} 25... Nxe3+ {[%clk 0:00:43.9]}
26. Ke2 {[%clk 0:01:15.5]} 26... Ng4 {[%clk 0:00:40.1]} 27. h3 {[%clk
0:01:12.4]} 27... Ne5 {[%clk 0:00:35.1]} 28. Nc8 {[%clk 0:01:12.8]} 28... a5
{[%clk 0:00:17.9]} 29. Nd6 {[%clk 0:01:08.1]} 29... b6 {[%clk 0:00:18.1]} 30. a4
{[%clk 0:01:03.4]} 30... Kg7 {[%clk 0:00:16.8]} 31. Nc8 {[%clk 0:00:54.2]} 31...
Nd7 {[%clk 0:00:16.8]} 32. Ne7 {[%clk 0:00:53.3]} 32... c5 {[%clk 0:00:15.4]}
33. Nd5 {[%clk 0:00:50.7]} 33... f5 {[%clk 0:00:13]} 34. Ke3 {[%clk 0:00:51.1]}
34... Kf7 {[%clk 0:00:13.3]} 35. Kf4 {[%clk 0:00:51.1]} 35... Ke6 {[%clk
0:00:12.4]} 36. Kg5 {[%clk 0:00:50.2]} 36... Kf7 {[%clk 0:00:07.4]} 37. Kh6
{[%clk 0:00:49.1]} 37... Kg8 {[%clk 0:00:07.6]} 38. h4 {[%clk 0:00:48]} 38...
Kh8 {[%clk 0:00:07.3]} 39. h5 {[%clk 0:00:46.7]} 39... gxh5 {[%clk 0:00:05.5]}
40. Kg5 {[%clk 0:00:47.4]} 40... Kg7 {[%clk 0:00:05.7]} 41. Kxf5 {[%clk
0:00:47.4]} 41... h6 {[%clk 0:00:05]} 42. Ke6 {[%clk 0:00:47.5]} 42... Nf8+
{[%clk 0:00:04.3]} 43. Kd6 {[%clk 0:00:44.8]} 43... Ng6 {[%clk 0:00:02.4]} 44.
Nxb6 {[%clk 0:00:43.8]} 44... h4 {[%clk 0:00:01.9]} 45. gxh4 {[%clk 0:00:42]}
45... Nxh4 {[%clk 0:00:02.8]} 46. Kxc5 {[%clk 0:00:40.2]} 46... Nf3 {[%clk
0:00:02.8]} 47. Kd5 {[%clk 0:00:38.5]} 47... h5 {[%clk 0:00:03.2]} 48. Ke4
{[%clk 0:00:39]} 48... Nd2+ {[%clk 0:00:02.8]} 49. Kf4 {[%clk 0:00:38.1]} 49...
Nxb3 {[%clk 0:00:03.7]} 50. Nd7 {[%clk 0:00:35.1]} 50... Kg6 {[%clk 0:00:01.7]}
51. c5 {[%clk 0:00:34.1]} 51... Nd4 {[%clk 0:00:01.9]} 52. Ne5+ {[%clk
0:00:28.2]} 1-0

[Event "Late-Titled-Tuesday-Blitz-February-13-2024"]
[Site "Chess.com"]
[Date "2024.02.13"]
[Round "4"]
[White "KetiTsatsalashvili"]
[Black "HamedWafa4"]
[Result "1-0"]
[WhiteElo "2465"]
[BlackElo "2715"]
[TimeControl "180+1"]
[EndTime "14:38:58 PST"]
[Termination "KetiTsatsalashvili won by resignation"]

1. d4 {[%clk 0:03:00.9]} 1... Nf6 {[%clk 0:02:55.5]} 2. Nf3 {[%clk 0:03:00.1]}
2... e6 {[%clk 0:02:54.4]} 3. e3 {[%clk 0:03:00]} 3... b6 {[%clk 0:02:50.6]} 4.
Bd3 {[%clk 0:03:00.3]} 4... Bb7 {[%clk 0:02:50.1]} 5. Nbd2 {[%clk 0:03:00.8]}
5... d5 {[%clk 0:02:48]} 6. b3 {[%clk 0:03:00.5]} 6... Nbd7 {[%clk 0:02:47.7]}
7. Bb2 {[%clk 0:02:59.7]} 7... Be7 {[%clk 0:02:47.7]} 8. O-O {[%clk 0:02:59.4]}
8... O-O {[%clk 0:02:46.9]} 9. Ne5 {[%clk 0:02:59.8]} 9... Nxe5 {[%clk
0:02:42.8]} 10. dxe5 {[%clk 0:02:59.5]} 10... Ne4 {[%clk 0:02:43.2]} 11. f3
{[%clk 0:02:48.9]} 11... Nxd2 {[%clk 0:02:37.4]} 12. Qxd2 {[%clk 0:02:49.8]}
12... c5 {[%clk 0:02:33.9]} 13. Rad1 {[%clk 0:02:49.4]} 13... f5 {[%clk
0:02:30.2]} 14. exf6 {[%clk 0:02:47.8]} 14... Bxf6 {[%clk 0:02:29.8]} 15. Bxf6
{[%clk 0:02:48.1]} 15... Qxf6 {[%clk 0:02:30.7]} 16. c4 {[%clk 0:02:37.1]} 16...
Rad8 {[%clk 0:02:19.3]} 17. Qc2 {[%clk 0:02:35]} 17... Qh6 {[%clk 0:02:14.8]}
18. cxd5 {[%clk 0:02:30.6]} 18... exd5 {[%clk 0:02:12.3]} 19. e4 {[%clk
0:02:24.3]} 19... Qe3+ {[%clk 0:01:49]} 20. Kh1 {[%clk 0:01:48.6]} 20... dxe4
{[%clk 0:01:41.4]} 21. Bxe4 {[%clk 0:01:04.1]} 21... Bxe4 {[%clk 0:01:40.4]} 22.
fxe4 {[%clk 0:00:59.5]} 22... Rxf1+ {[%clk 0:01:37.6]} 23. Rxf1 {[%clk
0:00:58.4]} 23... Qd3 {[%clk 0:01:34.1]} 24. Qf2 {[%clk 0:00:54.4]} 24... h6
{[%clk 0:01:32.9]} 25. Qf5 {[%clk 0:00:45.7]} 25... Qd7 {[%clk 0:01:26]} 26. Qf3
{[%clk 0:00:37]} 26... Re8 {[%clk 0:01:19.4]} 27. h3 {[%clk 0:00:36.5]} 27...
Qe6 {[%clk 0:01:18.9]} 28. Re1 {[%clk 0:00:34]} 28... Qe5 {[%clk 0:01:19.3]} 29.
Qd3 {[%clk 0:00:33]} 29... Kh7 {[%clk 0:01:17.3]} 30. Qc4 {[%clk 0:00:30.2]}
30... Re6 {[%clk 0:01:16.6]} 31. Qd3 {[%clk 0:00:29.9]} 31... Rd6 {[%clk
0:01:15.5]} 32. Qf3 {[%clk 0:00:29]} 32... Rf6 {[%clk 0:01:13.5]} 33. Qd3 {[%clk
0:00:28.2]} 33... Rf4 {[%clk 0:01:08.5]} 34. Qc4 {[%clk 0:00:18.3]} 34... h5
{[%clk 0:00:52.7]} 35. a4 {[%clk 0:00:17.9]} 35... h4 {[%clk 0:00:51.6]} 36. Qd3
{[%clk 0:00:17]} 36... Rf2 {[%clk 0:00:43]} 37. Qd7 {[%clk 0:00:13.2]} 37... Qg5
{[%clk 0:00:33.8]} 38. Rg1 {[%clk 0:00:11.6]} 38... Re2 {[%clk 0:00:31.9]} 39.
Qxa7 {[%clk 0:00:11]} 39... Rxe4 {[%clk 0:00:25.2]} 40. Qxb6 {[%clk 0:00:11]}
40... Rb4 {[%clk 0:00:25.5]} 41. Qe6 {[%clk 0:00:10.2]} 41... Rxb3 {[%clk
0:00:20.3]} 42. Qxb3 {[%clk 0:00:09.5]} 42... Qe5 {[%clk 0:00:16.9]} 43. Qf3
{[%clk 0:00:09.3]} 43... c4 {[%clk 0:00:16.4]} 44. Rf1 {[%clk 0:00:09.6]} 44...
Qd4 {[%clk 0:00:15.1]} 45. Qf5+ {[%clk 0:00:09.7]} 45... Kh8 {[%clk 0:00:14.9]}
46. Qf8+ {[%clk 0:00:09.8]} 46... Kh7 {[%clk 0:00:15.4]} 47. Qf5+ {[%clk
0:00:10.1]} 47... Kh8 {[%clk 0:00:16]} 48. Qh5+ {[%clk 0:00:10.2]} 48... Kg8
{[%clk 0:00:16.4]} 49. Re1 {[%clk 0:00:08.8]} 1-0